bitfinex-derivatives/quotes_SOLF0:USTF0_20250901
["timestamp","ask_amount","ask_price","bid_price","bid_amount"]
[1756745984096,113.88,198.61,198.54,7.57]
[1756745985098,7.9,198.6,198.54,7.57]
[1756745986800,2.84810784,198.64,198.56,7.57]
[1756745986801,7.9,198.64,198.56,7.57]
[1756745986993,30.8,198.63,198.56,7.57]
[1756745989403,7.9,198.62,198.56,7.57]
[1756745990401,7.9,198.62,198.55,2.84810784]
[1756745990602,7.9,198.62,198.53,7.57]
[1756745991104,67.88,198.62,198.53,7.57]
[1756745992508,7.9,198.62,198.53,7.57]
[1756745992805,95.58,198.62,198.53,7.57]
[1756745993104,7.9,198.62,198.55,2.84810784]
[1756745993305,7.9,198.62,198.56,7.57]
[1756745995200,7.9,198.62,198.53,7.57]
[1756745995805,46.56,198.62,198.53,7.57]
[1756745996205,46.56,198.62,198.55,2.84810784]
[1756745996506,7.9,198.62,198.56,7.57]
[1756745997202,7.9,198.66,198.59,7.57]
[1756745997408,7.9,198.66,198.62,7.57]
[1756745997799,7.9,198.66,198.61,2.84810784]
[1756745998007,7.9,198.7,198.62,7.57]
[1756745998206,124.52,198.69,198.62,7.57]
[1756746000008,7.9,198.68,198.61,2.84810784]
[1756746001106,7.9,198.68,198.61,10.41810784]
[1756746001403,132.4,198.68,198.64,10.41810784]
[1756746002411,7.9,198.67,198.64,10.41810784]
[1756746002611,124.5,198.68,198.64,2.84810784]
[1756746002801,7.9,198.67,198.57,7.57]
[1756746003002,7.9,198.67,198.61,2.84810784]
[1756746003201,7.9,198.67,198.57,7.57]
[1756746003404,124.5,198.68,198.57,10.41810784]
[1756746003608,7.9,198.66,198.57,2.84810784]
[1756746004115,7.9,198.66,198.53,7.57]
[1756746004311,7.9,198.66,198.54,1.83793622]
[1756746004505,7.9,198.66,198.53,10.41810784]
[1756746005111,2.84810784,198.67,198.53,10.41810784]
[1756746005307,7.9,198.63,198.53,10.41810784]
[1756746005513,2.84810784,198.64,198.53,10.41810784]
[1756746005714,7.9,198.63,198.53,10.41810784]
[1756746005915,2.84810784,198.64,198.53,10.41810784]
[1756746006213,7.9,198.63,198.53,10.41810784]
[1756746006516,7.9,198.63,198.5,2.84810784]
[1756746006714,7.9,198.63,198.51,1.83800906]
[1756746006915,7.9,198.63,198.5,2.84810784]
[1756746007615,7.9,198.63,198.51,7.57]
[1756746008311,8.16,198.63,198.51,10.41810784]
[1756746008506,2.84810784,198.61,198.51,10.41810784]
[1756746008709,8.16,198.59,198.51,10.41810784]
[1756746009617,8.16,198.59,198.49,2.84810784]
[1756746010815,47.88,198.58,198.52,2.84810784]
[1756746011318,55.24,198.58,198.52,2.84810784]
[1756746012015,8.16,198.66,198.53,7.86]
[1756746012211,11.00810784,198.66,198.56,7.86]
[1756746012416,8.16,198.64,198.56,7.86]
[1756746012713,8.16,198.64,198.58,2.84810784]
[1756746012915,71.44,198.64,198.58,2.84810784]
[1756746013308,71.44,198.64,198.56,7.86]
[1756746015018,71.44,198.64,198.53,2.84810784]
[1756746015217,71.44,198.64,198.52,7.86]
[1756746015423,2.84810784,198.63,198.52,10.70810784]
[1756746015827,8.16,198.62,198.52,2.84810784]
[1756746016317,2.84810784,198.63,198.49,10.70810784]
[1756746016721,8.16,198.62,198.49,10.70810784]
[1756746018024,2.84810784,198.6,198.49,10.70810784]
[1756746018224,8.16,198.59,198.49,10.70810784]
[1756746019123,2.84810784,198.6,198.49,10.70810784]
[1756746019319,8.16,198.59,198.49,10.70810784]
[1756746019818,17.3,198.58,198.49,10.70810784]
[1756746020622,8.16,198.57,198.49,10.70810784]
[1756746020824,8.16,198.57,198.49,2.84810784]
[1756746022617,8.16,198.57,198.46,2.84810784]
[1756746022820,2.84810784,198.54,198.45,7.86]
[1756746023024,8.16,198.53,198.45,7.86]
[1756746024121,8.16,198.53,198.43,2.84810784]
[1756746024325,8.16,198.53,198.42,7.86]
[1756746024528,2.84810784,198.51,198.42,7.86]
[1756746024727,8.16,198.49,198.42,7.86]
[1756746025324,8.16,198.49,198.4,2.84810784]
[1756746026523,59.84,198.48,198.4,2.84810784]
[1756746027330,87.8,198.47,198.4,2.84810784]
[1756746029026,8.16,198.46,198.4,2.84810784]
[1756746029627,8.16,198.46,198.38,7.86]
[1756746029927,8.16,198.46,198.37,2.84810784]
[1756746029928,87.8,198.47,198.35,10.70810784]
[1756746030122,8.16,198.47,198.36,7.86]
[1756746030322,86.42,198.46,198.36,7.86]
[1756746031129,8.16,198.47,198.38,2.84810784]
[1756746031334,101.86,198.47,198.41,10.70810784]
[1756746032433,101.86,198.47,198.39,2.84810784]
[1756746033632,101.86,198.47,198.36,2.84810784]
[1756746035630,8.16,198.47,198.37,7.86]
[1756746035836,25.2,198.46,198.39,2.84810784]
[1756746036032,25.2,198.46,198.4,7.86]
[1756746036235,62.16,198.47,198.4,7.86]
[1756746036537,8.16,198.47,198.4,7.86]
[1756746036936,8.16,198.53,198.42,2.84810784]
[1756746037135,29.86,198.52,198.43,7.86]
[1756746037328,8.16,198.51,198.43,7.86]
[1756746037638,37.56,198.51,198.43,10.70810784]
[1756746038237,8.16,198.51,198.43,10.70810784]
[1756746038429,55.66,198.5,198.43,10.70810784]
[1756746038841,8.11,198.49,198.36,7.48]
[1756746039137,55.66,198.5,198.36,7.48]
[1756746039138,8.11,198.47,198.36,7.48]
[1756746039338,8.11,198.44,198.33,2.84810784]
[1756746039533,10.95810784,198.44,198.32,10.32810784]
[1756746039933,8.11,198.43,198.32,7.48]
[1756746040136,8.11,198.41,198.32,7.48]
[1756746040639,8.11,198.41,198.29,4.55604759]
[1756746041040,8.11,198.41,198.28,7.48]
[1756746041742,41.26,198.4,198.28,7.48]
[1756746042240,8.11,198.41,198.28,7.48]
[1756746042441,65.74,198.4,198.29,4.55604759]
[1756746042642,89.0,198.39,198.3,7.48]
[1756746043141,8.11,198.41,198.3,7.48]
[1756746043538,132.59,198.41,198.33,7.48]
[1756746044442,8.11,198.41,198.33,7.48]
[1756746044636,132.59,198.41,198.33,7.48]
[1756746045441,8.11,198.41,198.33,7.48]
[1756746046439,129.03604759,198.42,198.27,12.03604759]
[1756746046641,129.03604759,198.42,198.27,7.48]
[1756746046642,8.11,198.41,198.27,7.48]
[1756746047441,8.11,198.39,198.27,7.48]
[1756746048139,8.11,198.39,198.3,7.48]
[1756746048340,26.5,198.38,198.3,7.48]
[1756746049045,51.66,198.39,198.33,7.48]
[1756746049346,51.66,198.39,198.29,4.55604759]
[1756746049347,59.77,198.39,198.29,4.55604759]
[1756746049556,59.77,198.39,198.29,7.48]
[1756746049846,8.11,198.39,198.29,7.48]
[1756746050052,26.48,198.38,198.32,7.48]
[1756746051648,346.83,198.44,198.34,4.55604759]
[1756746051850,51.38,198.43,198.34,4.55604759]
[1756746052348,124.5,198.43,198.35,7.48]
[1756746052959,124.5,198.43,198.35,12.03604759]
[1756746053555,124.5,198.43,198.31,12.03604759]
[1756746053850,8.11,198.42,198.31,12.03604759]
[1756746054657,8.11,198.42,198.25,70.6116]
[1756746054658,132.61,198.42,198.34,12.03604759]
[1756746055245,132.61,198.42,198.34,7.48]
[1756746056251,132.61,198.42,198.33,4.55604759]
[1756746056959,132.61,198.42,198.33,12.03604759]
[1756746059559,124.48,198.41,198.36,4.55604759]
[1756746059754,124.48,198.41,198.37,7.48]
[1756746059954,124.48,198.41,198.36,4.55604759]
[1756746060157,338.72,198.44,198.36,12.03604759]
[1756746060456,338.72,198.44,198.39,4.55604759]
[1756746060760,338.72,198.44,198.39,9.09204759]
[1756746060960,124.48,198.46,198.4,7.48]
[1756746061556,124.48,198.46,198.39,4.55604759]
[1756746062757,8.11,198.45,198.35,12.03604759]
[1756746063657,8.11,198.45,198.36,4.5367]
[1756746064056,8.11,198.45,198.39,2.8455081]
[1756746064857,8.11,198.45,198.34,2.8455081]
[1756746065056,8.11,198.43,198.32,2.8455081]
[1756746065557,8.11,198.43,198.3,7.48]
[1756746065762,2.8455081,198.44,198.3,10.3255081]
[1756746066062,8.11,198.43,198.3,10.3255081]
[1756746066456,8.11,198.43,198.3,14.8635081]
[1756746066657,8.11,198.43,198.3,10.3255081]
[1756746067163,2.8455081,198.44,198.3,10.3255081]
[1756746067562,2.8455081,198.41,198.3,2.8455081]
[1756746067857,2.8455081,198.38,198.27,7.07725313]
[1756746068061,10.4,198.4,198.26,11.71174503]
[1756746068062,10.56,198.37,198.26,11.71174503]
[1756746068363,7.64,198.36,198.26,7.48]
[1756746069162,7.64,198.36,198.24,8.79018429]
[1756746069361,7.64,198.36,198.24,4.55843926]
[1756746069962,7.64,198.36,198.23,8.77134503]
[1756746070159,7.64,198.35,198.23,8.79018429]
[1756746070458,7.64,198.36,198.22,7.75]
[1756746071057,7.64,198.34,198.22,7.75]
[1756746071855,7.64,198.34,198.27,7.75]
[1756746073163,53.34,198.33,198.27,7.75]
[1756746073365,53.34,198.33,198.23,4.55843926]
[1756746073564,7.64,198.32,198.22,7.75]
[1756746074163,77.78,198.32,198.23,4.55843926]
[1756746074364,77.78,198.32,198.24,7.75]
[1756746075062,7.64,198.35,198.24,7.75]
[1756746075256,101.14,198.33,198.24,7.75]
[1756746076071,7.64,198.35,198.26,4.55843926]
[1756746076262,123.62,198.34,198.27,7.75]
[1756746076467,132.34,198.35,198.27,7.75]
[1756746076659,7.64,198.35,198.27,7.75]
[1756746077065,7.64,198.35,198.23,12.30843926]
[1756746077362,7.64,198.35,198.23,7.75]
[1756746077564,7.64,198.35,198.2,4.55843926]
[1756746078467,7.64,198.35,198.21,7.75]
[1756746078663,7.64,198.33,198.21,12.2901]
[1756746079063,7.64,198.33,198.21,7.75]
[1756746079668,69.72,198.32,198.21,7.75]
[1756746080366,7.64,198.33,198.22,4.5398]
[1756746080566,31.08,198.32,198.23,12.30843926]
[1756746080762,7.64,198.33,198.24,12.2894]
[1756746080968,29.74,198.35,198.27,7.75]
[1756746081463,7.64,198.36,198.27,7.75]
[1756746081664,28.72,198.39,198.3,7.75]
[1756746081872,7.64,198.41,198.3,7.75]
[1756746082071,125.0,198.4,198.3,7.75]
[1756746082269,125.0,198.4,198.31,4.5378]
[1756746082474,132.66,198.41,198.32,4.55843926]
[1756746082766,338.82,198.42,198.36,7.75]
[1756746084169,346.46,198.42,198.35,4.55843926]
[1756746085667,338.82,198.42,198.35,12.30843926]
[1756746086061,125.04,198.44,198.38,4.55843926]
[1756746086269,7.64,198.46,198.38,16.84453926]
[1756746086466,7.64,198.46,198.38,12.30843926]
[1756746087376,7.64,198.53,198.4,7.75]
[1756746087674,125.12,198.52,198.42,4.55843926]
[1756746088276,7.64,198.53,198.45,4.55843926]
[1756746088477,132.8,198.53,198.45,4.55843926]
[1756746088672,7.64,198.53,198.45,4.55843926]
[1756746088866,132.82,198.53,198.46,7.75]
[1756746089373,7.64,198.53,198.46,7.75]
[1756746089972,464.1,198.54,198.46,7.75]
[1756746090169,7.64,198.53,198.45,4.55843926]
[1756746090371,132.78,198.53,198.45,4.55843926]
[1756746091587,125.14,198.53,198.46,7.75]
[1756746091776,125.14,198.53,198.49,7.75]
[1756746092683,125.14,198.53,198.48,4.55843926]
[1756746092883,125.14,198.53,198.51,4.55843926]
[1756746093083,125.14,198.53,198.51,12.30843926]
[1756746093486,7.64,198.57,198.51,12.30843926]
[1756746093684,132.86,198.57,198.51,12.30843926]
[1756746093888,132.84,198.57,198.51,12.30843926]
[1756746094191,7.64,198.57,198.51,12.30843926]
[1756746095378,125.18,198.58,198.51,12.30843926]
[1756746096786,7.64,198.61,198.51,12.30843926]
[1756746096787,7.64,198.61,198.54,4.55843926]
[1756746096989,7.64,198.61,198.54,12.30843926]
[1756746097189,7.64,198.61,198.54,7.75]
[1756746097388,7.64,198.61,198.55,4.55843926]
[1756746097589,338.8,198.66,198.55,4.55843926]
[1756746097793,125.14,198.65,198.58,4.55843926]
[1756746099582,7.64,198.66,198.61,4.55843926]
[1756746099788,7.64,198.66,198.62,7.96]
[1756746099991,68.23,198.7,198.64,4.55843926]
[1756746100292,7.73,198.7,198.64,4.55843926]
[1756746105694,7.73,198.74,198.67,4.55843926]
[1756746107095,125.89621014,198.75,198.64,4.55843926]
[1756746107390,7.73,198.74,198.64,4.55843926]
[1756746109093,7.73,198.74,198.65,7.96]
[1756746109297,132.71,198.74,198.65,7.96]
[1756746111301,7.73,198.74,198.65,7.96]
[1756746111698,7.73,198.74,198.67,4.55843926]
[1756746113000,7.73,198.74,198.64,4.55843926]
[1756746114103,132.61,198.74,198.64,4.55843926]
[1756746116006,132.61,198.74,198.67,2.83741066]
[1756746116200,7.73,198.74,198.67,2.83741066]
[1756746116401,132.71,198.74,198.67,2.83741066]
[1756746118002,124.96,198.73,198.67,2.83741066]
[1756746118308,124.94,198.73,198.67,2.83741066]
[1756746119406,7.73,198.74,198.7,2.83741066]
[1756746119607,7.73,198.73,198.7,2.83741066]
[1756746120004,7.73,198.77,198.7,2.83741066]
[1756746120208,124.96,198.77,198.73,2.83741066]
[1756746120406,7.73,198.77,198.73,2.83741066]
[1756746120907,463.6,198.78,198.73,2.83741066]
[1756746121310,7.73,198.77,198.73,2.83741066]
[1756746122006,463.6,198.78,198.73,2.83741066]
[1756746122406,7.73,198.77,198.73,2.83741066]
[1756746122806,125.02,198.77,198.73,2.83741066]
[1756746123009,7.73,198.76,198.73,2.83741066]
[1756746123610,7.73,198.78,198.73,10.79741066]
[1756746124816,125.02,198.79,198.73,10.79741066]
[1756746125008,132.75,198.79,198.73,7.96]
[1756746125212,132.75,198.79,198.73,10.79741066]
[1756746126315,132.75,198.79,198.73,2.83741066]
[1756746129711,132.75,198.79,198.56,70.4985]
[1756746129912,136.46326796,198.79,198.67,2.83741066]
[1756746130112,136.46326796,198.79,198.65,7.59]
[1756746130313,136.46326796,198.79,198.67,2.83741066]
[1756746130910,8.01,198.75,198.67,2.83741066]
[1756746131211,8.01,198.73,198.67,2.83741066]
[1756746133012,124.9,198.72,198.67,2.83741066]
[1756746133611,8.01,198.71,198.67,2.83741066]
[1756746133817,124.9,198.72,198.67,2.83741066]
[1756746134117,8.01,198.71,198.67,2.83741066]
[1756746134419,8.01,198.78,198.67,10.42741066]
[1756746134608,8.01,198.76,198.67,10.42741066]
[1756746135710,8.01,198.76,198.7,2.83741066]
[1756746135913,132.83,198.76,198.7,10.42741066]
[1756746136717,0.8758573,198.79,198.73,2.83741066]
[1756746136918,338.26,198.8,198.73,2.83741066]
[1756746137117,124.84,198.79,198.73,2.83741066]
[1756746137314,338.26,198.8,198.73,2.83741066]
[1756746137512,463.12,198.8,198.73,2.83741066]
[1756746137717,346.27,198.8,198.76,2.83741066]
[1756746138016,471.11,198.8,198.76,2.83741066]
[1756746138212,346.27,198.8,198.76,2.83741066]
[1756746138418,8.01,198.84,198.77,7.59]
[1756746138615,124.82,198.82,198.77,7.59]
[1756746139623,8.01,198.86,198.79,2.83741066]
[1756746139914,8.01,198.84,198.76,2.83741066]
[1756746141018,8.01,198.82,198.76,2.83741066]
[1756746141217,124.86,198.84,198.76,2.83741066]
[1756746141518,8.01,198.83,198.76,2.83741066]
[1756746142620,8.01,198.83,198.75,7.59]
[1756746142621,8.01,198.83,198.79,2.83741066]
[1756746143017,8.01,198.83,198.79,10.42741066]
[1756746143423,8.88558183,198.87,198.79,10.42741066]
[1756746143716,124.84,198.84,198.79,10.42741066]
[1756746144022,124.84,198.84,198.8,7.59]
[1756746144219,8.88558183,198.87,198.79,10.42741066]
[1756746144415,8.88558183,198.87,198.82,2.83741066]
[1756746144416,132.81,198.86,198.82,2.83741066]
[1756746144620,8.01,198.91,198.85,2.83741066]
[1756746144922,8.01,198.89,198.81,7.59]
[1756746145122,8.01,198.89,198.85,2.83741066]
[1756746145713,8.01,198.89,198.8,2.83741066]
[1756746147227,8.01,198.89,198.7,2.83741066]
[1756746147228,8.01,198.87,198.77,2.83741066]
[1756746147421,8.01,198.87,198.76,2.83741066]
[1756746148126,8.01,198.85,198.76,2.83741066]
[1756746148324,8.01,198.85,198.72,7.59]
[1756746148523,8.01,198.85,198.76,2.83741066]
[1756746148824,32.16,198.84,198.76,2.83741066]
[1756746149025,8.01,198.85,198.76,2.83741066]
[1756746149225,61.64,198.84,198.76,2.83741066]
[1756746149923,8.01,198.85,198.78,4.53402303]
[1756746151123,8.01,198.85,198.75,4.53402303]
[1756746154029,8.01,198.85,198.73,7.59]
[1756746154831,8.01,198.85,198.69,7.59]
[1756746157334,32.28,198.84,198.69,7.59]
[1756746157528,8.01,198.83,198.69,7.59]
[1756746158531,7.59,198.81,198.69,7.59]
[1756746160932,7.59,198.81,198.7,4.5289]
[1756746161326,7.59,198.81,198.71,7.65]
[1756746162738,7.59,198.81,198.72,4.5284]
[1756746163038,29.34,198.83,198.73,7.65]
[1756746163739,7.59,198.82,198.73,7.65]
[1756746166636,7.59,198.82,198.74,7.65]
[1756746167336,57.5,198.84,198.74,7.65]
[1756746167739,7.59,198.85,198.74,7.65]
[1756746168633,7.59,198.85,198.71,74.58167784]
[1756746168834,7.59,198.88,198.72,7.65]
[1756746169038,7.59,198.88,198.75,7.65]
[1756746176746,7.59,198.88,198.7,7.65]
[1756746176942,7.59,198.85,198.7,7.65]
[1756746178844,7.59,198.85,198.71,1.91641178]
[1756746179044,7.59,198.85,198.7,7.65]
[1756746179348,7.59,198.85,198.71,1.91665952]
[1756746179649,7.59,198.85,198.7,7.65]
[1756746179944,13.23631245,198.85,198.64,4.21151786]
[1756746180144,7.59,198.84,198.66,7.65]
[1756746180448,7.59,198.84,198.68,7.65]
[1756746180643,7.59,198.82,198.7,7.65]
[1756746180849,7.59,198.82,198.72,7.65]
[1756746181453,7.59,198.82,198.73,4.58641371]
[1756746181646,7.59,198.82,198.74,4.58641371]
[1756746181841,7.59,198.82,198.75,4.58641371]
[1756746182041,7.59,198.82,198.76,4.58641371]
[1756746182242,7.59,198.82,198.77,4.58641371]
[1756746182445,7.59,198.82,198.78,4.58641371]
[1756746182642,7.59,198.82,198.68,7.65]
[1756746182843,7.59,198.82,198.69,6.50636093]
[1756746183051,7.59,198.82,198.68,7.65]
[1756746185041,22.7,198.82,198.63,7.65]
[1756746185244,5.96,198.79,198.64,1.91824611]
[1756746185445,15.11,198.8,198.63,7.65]
[1756746185446,338.18,198.78,198.63,7.65]
[1756746185643,5.96,198.77,198.64,1.91836563]
[1756746185949,338.18,198.78,198.63,7.65]
[1756746186247,5.96,198.77,198.65,7.65]
[1756746186453,5.96,198.77,198.67,7.65]
[1756746186753,125.06,198.76,198.69,7.65]
[1756746187650,5.96,198.75,198.69,7.65]
[1756746187854,5.96,198.75,198.62,7.71]
[1756746188055,5.96,198.75,198.64,7.71]
[1756746188251,125.06,198.76,198.64,7.71]
[1756746189145,5.95,198.75,198.64,7.71]
[1756746189352,125.06,198.76,198.64,7.71]
[1756746189845,5.95,198.75,198.64,7.71]
[1756746190053,125.06,198.76,198.59,7.71]
[1756746190251,140.17,198.76,198.6,9.62508119]
[1756746190454,15.11,198.74,198.6,7.71]
[1756746190864,5.95,198.73,198.6,7.71]
[1756746191351,15.11,198.74,198.6,7.71]
[1756746191655,5.95,198.72,198.6,7.71]
[1756746193462,67.5,198.71,198.6,7.71]
[1756746193760,94.26,198.7,198.6,7.71]
[1756746194664,5.95,198.72,198.6,7.71]
[1756746195158,29.94,198.71,198.6,7.71]
[1756746195862,5.95,198.72,198.6,7.71]
[1756746196062,29.74,198.71,198.6,7.71]
[1756746196961,5.95,198.72,198.6,7.71]
[1756746197157,338.18,198.78,198.6,7.71]
[1756746197158,29.74,198.74,198.6,7.71]
[1756746197358,29.74,198.74,198.61,4.5309]
[1756746197552,5.95,198.75,198.62,1.85688408]
[1756746197753,57.0,198.74,198.63,1.85658976]
[1756746197958,5.95,198.75,198.65,7.71]
[1756746198255,463.28,198.78,198.65,7.71]
[1756746198462,338.18,198.78,198.69,7.71]
[1756746199559,125.16,198.81,198.69,7.71]
[1756746200360,5.95,198.82,198.72,7.71]
[1756746200565,30.04,198.83,198.72,7.71]
[1756746200759,30.04,198.84,198.72,7.71]
[1756746201757,30.04,198.84,198.73,7.71]
[1756746202462,5.95,198.83,198.73,7.71]
[1756746204565,30.04,198.84,198.73,7.71]
[1756746205173,5.95,198.83,198.73,7.71]
[1756746206471,5.95,198.83,198.66,7.71]
[1756746206673,5.95,198.83,198.68,7.71]
[1756746206971,30.04,198.84,198.68,7.71]
[1756746207567,5.95,198.83,198.68,7.71]
[1756746208569,30.04,198.84,198.68,7.71]
[1756746209270,5.95,198.83,198.68,7.71]
[1756746209677,5.95,198.83,198.7,7.71]
[1756746209877,5.95,198.83,198.72,7.71]
[1756746210575,5.95,198.87,198.73,7.71]
[1756746212475,5.95,198.87,198.75,4.5278]
[1756746212776,5.95,198.87,198.71,91.8875]
[1756746212777,5.95,198.87,198.76,7.71]
[1756746213776,5.95,198.87,198.77,7.71]
[1756746216680,5.95,198.87,198.77,12.2372]
[1756746216879,5.95,198.87,198.78,7.71]
[1756746218876,5.95,198.87,198.73,98.5003]
[1756746219077,338.32,198.9,198.73,98.5003]
[1756746219078,338.32,198.9,198.79,8.01]
[1756746219474,5.94,198.89,198.79,8.01]
[1756746221180,338.32,198.9,198.79,8.01]
[1756746221381,5.94,198.89,198.79,8.01]
[1756746221581,338.32,198.9,198.79,8.01]
[1756746221982,5.94,198.89,198.79,8.01]
[1756746222378,338.32,198.9,198.79,8.01]
[1756746222688,5.94,198.89,198.72,8.01]
[1756746222885,338.32,198.9,198.72,8.01]
[1756746223984,5.94,198.89,198.72,8.01]
[1756746225080,338.32,198.9,198.72,8.01]
[1756746225586,130.68,198.89,198.74,8.01]
[1756746225786,130.68,198.89,198.76,4.5276]
[1756746225981,130.68,198.89,198.77,8.01]
[1756746226486,124.74,198.88,198.77,8.01]
[1756746227487,5.94,198.89,198.77,8.01]
[1756746228388,5.94,198.89,198.81,4.5264]
[1756746228588,5.94,198.89,198.82,8.01]
[1756746231093,5.94,198.89,198.78,8.01]
[1756746231391,5.94,198.93,198.79,1.84723599]
[1756746231586,130.58,198.93,198.8,8.01]
[1756746231781,5.94,198.92,198.8,8.01]
[1756746232185,5.94,198.92,198.81,4.57717085]
[1756746232494,5.94,198.92,198.83,8.01]
[1756746232792,130.82,198.96,198.85,8.01]
[1756746232987,14.98,198.95,198.86,4.57717085]
[1756746233286,14.98,198.95,198.85,8.01]
[1756746233287,14.98,198.95,198.87,4.57717085]
[1756746233493,14.98,198.95,198.88,4.57717085]
[1756746233691,5.94,198.96,198.89,4.57717085]
[1756746233994,5.94,198.96,198.9,4.57717085]
[1756746234199,31.64,198.97,198.91,4.57717085]
[1756746234498,5.94,198.96,198.92,4.57717085]
[1756746234795,31.64,198.97,198.93,4.57717085]
[1756746234981,5.94,198.96,198.88,8.01]
[1756746235184,5.94,198.96,198.89,4.58582244]
[1756746235382,5.94,198.96,198.9,4.58582244]
[1756746235589,5.94,198.96,198.88,8.01]
[1756746235590,5.94,198.97,198.91,4.58582244]
[1756746235888,5.94,198.96,198.92,4.58582244]
[1756746236089,61.92,198.97,198.93,4.58582244]
[1756746236290,5.94,198.96,198.94,4.58582244]
[1756746236589,5.94,198.96,198.88,8.01]
[1756746236796,5.94,198.96,198.89,4.58663621]
[1756746236992,5.94,198.96,198.9,4.58663621]
[1756746237187,5.94,198.96,198.91,12.59663621]
[1756746237394,5.94,198.96,198.92,4.58663621]
[1756746237693,5.94,198.96,198.93,4.58663621]
[1756746237892,5.94,198.96,198.91,8.01]
[1756746237893,5.94,198.96,198.94,4.58663621]
[1756746238093,5.94,198.96,198.91,8.01]
[1756746238285,5.94,198.96,198.92,4.58856034]
[1756746238490,5.94,198.96,198.93,4.58856034]
[1756746238690,5.94,198.96,198.94,4.58856034]
[1756746238897,5.94,198.96,198.95,4.58856034]
[1756746240694,5.94,198.96,198.95,4.59144959]
[1756746243294,6.83516346,198.99,198.95,4.59144959]
[1756746243495,5.96,199.03,198.96,4.59144959]
[1756746243694,5.96,199.03,198.97,4.59144959]
[1756746243996,5.96,199.03,198.98,4.59144959]
[1756746244186,5.96,199.03,198.99,4.59144959]
[1756746244388,126.03484445,199.04,198.9,8.01]
[1756746244588,5.96,199.03,198.91,4.61417689]
[1756746244788,5.96,199.03,198.92,4.61417689]
[1756746244993,5.96,199.03,198.93,4.61417689]
[1756746245194,5.96,199.03,198.94,4.61417689]
[1756746245394,5.96,199.03,198.95,4.61417689]
[1756746245592,5.96,199.03,198.96,4.61417689]
[1756746245792,5.96,199.03,198.97,4.61417689]
[1756746245993,5.96,199.03,198.98,4.61417689]
[1756746246300,126.03484445,199.04,198.85,8.01]
[1756746246496,141.14484445,199.04,198.85,8.01]
[1756746246696,1.34,199.01,198.79,8.01]
[1756746246889,337.92,199.0,198.8,1.85172063]
[1756746247093,1.31,198.99,198.77,8.01]
[1756746247294,125.66,198.98,198.79,8.01]
[1756746247497,125.66,198.98,198.81,8.01]
[1756746247897,1.29,198.97,198.81,8.01]
[1756746248099,0.03811574,198.91,198.81,8.01]
[1756746248298,1.29,198.9,198.81,8.01]
[1756746248693,0.03811574,198.91,198.81,8.01]